[Event "*** Titled Tuesday 3|2 Blitz"]
[Site "Chess.com"]
[Date "2016.02.02"]
[Round "6"]
[White "Mornar1951"]
[Black "JusticeBot"]
[Result "1-0"]
[WhiteElo "2596"]
[BlackElo "2426"]
[TimeControl "180+2"]
[EndTime "18:08:21 PST"]
[Termination "Mornar1951 won by resignation"]

1. Nf3 {[%clk 0:03:01.9]} 1... Nf6 {[%clk 0:03:01.1]} 2. c4 {[%clk 0:03:02.3]}
2... e6 {[%clk 0:03:03]} 3. g3 {[%clk 0:03:02.8]} 3... d5 {[%clk 0:03:02.5]} 4.
Bg2 {[%clk 0:03:04.7]} 4... Be7 {[%clk 0:03:03.7]} 5. d4 {[%clk 0:03:05.8]} 5...
O-O {[%clk 0:03:05.6]} 6. O-O {[%clk 0:03:07.1]} 6... dxc4 {[%clk 0:03:06.7]} 7.
Qc2 {[%clk 0:03:08.3]} 7... a6 {[%clk 0:03:08]} 8. a4 {[%clk 0:03:09.2]} 8...
Bd7 {[%clk 0:03:09.2]} 9. Rd1 {[%clk 0:03:09.6]} 9... Bc6 {[%clk 0:03:09.1]} 10.
Nc3 {[%clk 0:03:11.2]} 10... Bxf3 {[%clk 0:03:04.4]} 11. Bxf3 {[%clk 0:03:13.1]}
11... Nc6 {[%clk 0:03:05.5]} 12. Bxc6 {[%clk 0:03:13.5]} 12... bxc6 {[%clk
0:03:07.4]} 13. Bg5 {[%clk 0:03:14.6]} 13... Rb8 {[%clk 0:03:06.4]} 14. e3
{[%clk 0:03:13.6]} 14... Nd5 {[%clk 0:02:44.5]} 15. Bxe7 {[%clk 0:03:13.7]}
15... Qxe7 {[%clk 0:02:46.4]} 16. Ne4 {[%clk 0:03:14.6]} 16... Qb4 {[%clk
0:02:13.2]} 17. Rab1 {[%clk 0:03:04.6]} 17... Qb3 {[%clk 0:01:45.6]} 18. Rdc1
{[%clk 0:03:04.2]} 18... Qxc2 {[%clk 0:00:57.8]} 19. Rxc2 {[%clk 0:03:06.1]}
19... Rb4 {[%clk 0:00:59.1]} 20. a5 {[%clk 0:02:58.7]} 20... Ra4 {[%clk
0:00:54.8]} 21. Nc5 {[%clk 0:02:42.7]} 21... Rxa5 {[%clk 0:00:55.5]} 22. Rxc4
{[%clk 0:02:44.3]} 22... Rb8 {[%clk 0:00:54.4]} 23. Nd7 {[%clk 0:02:41.9]} 23...
Rbb5 {[%clk 0:00:40.6]} 24. Rxc6 {[%clk 0:02:39.4]} 24... Ra2 {[%clk 0:00:35.3]}
25. e4 {[%clk 0:02:29.5]} 25... Nf6 {[%clk 0:00:24.8]} 26. Rxc7 {[%clk
0:02:24.8]} 26... Nxd7 {[%clk 0:00:25.7]} 27. Rxd7 {[%clk 0:02:26.6]} 27... h6
{[%clk 0:00:21.6]} 28. b3 {[%clk 0:02:26.1]} 28... Rd2 {[%clk 0:00:15.2]} 29.
Kg2 {[%clk 0:02:11.3]} 29... a5 {[%clk 0:00:13.9]} 30. Rc1 {[%clk 0:02:11.4]}
30... Rb4 {[%clk 0:00:03.1]} 31. Rcc7 {[%clk 0:02:10.1]} 31... Rbxd4 {[%clk
0:00:04.4]} 32. Rxf7 {[%clk 0:02:11.3]} 32... Rxe4 {[%clk 0:00:05.8]} 33. Rxg7+
{[%clk 0:02:12]} 33... Kf8 {[%clk 0:00:04.1]} 34. Rh7 {[%clk 0:02:12.1]} 34...
Kg8 {[%clk 0:00:05.4]} 35. Rxh6 {[%clk 0:02:08.3]} 35... Ree2 {[%clk 0:00:05.5]}
36. Rg6+ {[%clk 0:02:06.9]} 36... Kh8 {[%clk 0:00:05]} 37. Rf6 {[%clk
0:02:06.8]} 37... Kg8 {[%clk 0:00:06.3]} 38. h4 {[%clk 0:02:06]} 38... Rb2
{[%clk 0:00:06.2]} 39. h5 {[%clk 0:02:06.6]} 39... Rxb3 {[%clk 0:00:02.9]} 40.
h6 {[%clk 0:02:07.3]} 40... Rb8 {[%clk 0:00:04.8]} 41. Rg7+ {[%clk 0:02:04.8]}
41... Kh8 {[%clk 0:00:06.2]} 42. Rff7 {[%clk 0:02:06]} 42... Rd8 {[%clk
0:00:02.5]} 43. Rh7+ {[%clk 0:02:06.4]} 43... Kg8 {[%clk 0:00:03.9]} 44. Rfg7+
{[%clk 0:02:08]} 1-0

[Event "*** Titled Tuesday 3|2 Blitz"]
[Site "Chess.com"]
[Date "2016.02.02"]
[Round "6"]
[White "ruifeng"]
[Black "Recombinant"]
[Result "1-0"]
[WhiteElo "2314"]
[BlackElo "2220"]
[TimeControl "180+2"]
[EndTime "18:08:23 PST"]
[Termination "ruifeng won by checkmate"]

1. e4 {[%clk 0:03:01.9]} 1... d6 {[%clk 0:03:00.5]} 2. d4 {[%clk 0:03:02.3]}
2... Nf6 {[%clk 0:03:00.9]} 3. Nc3 {[%clk 0:03:02.9]} 3... g6 {[%clk 0:02:52.9]}
4. Bg5 {[%clk 0:03:02.7]} 4... Bg7 {[%clk 0:02:54]} 5. Qd2 {[%clk 0:03:02.3]}
5... h6 {[%clk 0:02:54.5]} 6. Bf4 {[%clk 0:03:02.9]} 6... g5 {[%clk 0:02:55.8]}
7. Bg3 {[%clk 0:03:03.3]} 7... Nc6 {[%clk 0:02:54.5]} 8. f3 {[%clk 0:02:53.9]}
8... e5 {[%clk 0:02:48.3]} 9. Nge2 {[%clk 0:02:52.3]} 9... Nh5 {[%clk 0:02:45]}
10. Bf2 {[%clk 0:02:53.1]} 10... Nf4 {[%clk 0:02:30.1]} 11. Nxf4 {[%clk
0:02:46.1]} 11... exf4 {[%clk 0:02:30.7]} 12. O-O-O {[%clk 0:02:45.4]} 12... O-O
{[%clk 0:02:26.6]} 13. g3 {[%clk 0:02:41]} 13... fxg3 {[%clk 0:02:20.7]} 14.
hxg3 {[%clk 0:02:41.9]} 14... f5 {[%clk 0:02:21.3]} 15. Bc4+ {[%clk 0:02:32.1]}
15... Kh7 {[%clk 0:02:19.3]} 16. Rh5 {[%clk 0:02:27.4]} 16... fxe4 {[%clk
0:02:11.6]} 17. Nxe4 {[%clk 0:02:26.2]} 17... d5 {[%clk 0:02:00.2]} 18. Nxg5+
{[%clk 0:02:23]} 18... Kg8 {[%clk 0:02:00.3]} 19. Bd3 {[%clk 0:01:42.1]} 19...
hxg5 {[%clk 0:01:51.1]} 20. Rxg5 {[%clk 0:01:28.6]} 20... Rxf3 {[%clk
0:01:47.7]} 21. Rh1 {[%clk 0:01:04.6]} 21... Qf6 {[%clk 0:01:27.6]} 22. Rg6
{[%clk 0:00:53.7]} 22... Rxd3 {[%clk 0:00:34.4]} 23. Qh6 {[%clk 0:00:27.3]}
23... Qf7 {[%clk 0:00:06.4]} 24. Qh8# {[%clk 0:00:27.8]} 1-0

[Event "*** Titled Tuesday 3|2 Blitz"]
[Site "Chess.com"]
[Date "2016.02.02"]
[Round "6"]
[White "SenseiJulio"]
[Black "DanielRensch"]
[Result "1-0"]
[WhiteElo "2528"]
[BlackElo "2335"]
[TimeControl "180+2"]
[EndTime "18:09:05 PST"]
[Termination "SenseiJulio won on time"]

1. d4 {[%clk 0:02:59.3]} 1... Nf6 {[%clk 0:03:00.3]} 2. c4 {[%clk 0:02:56.1]}
2... e6 {[%clk 0:03:01.3]} 3. Nc3 {[%clk 0:02:52.4]} 3... Bb4 {[%clk 0:03:01.6]}
4. Bg5 {[%clk 0:02:49.1]} 4... c5 {[%clk 0:03:01.2]} 5. d5 {[%clk 0:02:45.4]}
5... h6 {[%clk 0:03:00.2]} 6. Bh4 {[%clk 0:02:43.9]} 6... Nxd5 {[%clk
0:02:59.3]} 7. Bxd8 {[%clk 0:02:29.4]} 7... Nxc3 {[%clk 0:03:00]} 8. Qb3 {[%clk
0:02:26.8]} 8... Ne4+ {[%clk 0:03:00.8]} 9. Kd1 {[%clk 0:02:27.6]} 9... Nxf2+
{[%clk 0:03:01.8]} 10. Kc2 {[%clk 0:02:29.1]} 10... Kxd8 {[%clk 0:03:02.5]} 11.
Qe3 {[%clk 0:01:38.3]} 11... Nxh1 {[%clk 0:03:02.4]} 12. g3 {[%clk 0:01:39.7]}
12... Nc6 {[%clk 0:02:07.3]} 13. Nf3 {[%clk 0:01:40.6]} 13... b6 {[%clk
0:01:36.9]} 14. Bg2 {[%clk 0:01:40.9]} 14... Bb7 {[%clk 0:01:37.8]} 15. Bxh1
{[%clk 0:01:39.3]} 15... Rc8 {[%clk 0:01:38.4]} 16. Rd1 {[%clk 0:01:37.4]} 16...
Rc7 {[%clk 0:01:32.7]} 17. Kb1 {[%clk 0:01:19.6]} 17... Kc8 {[%clk 0:01:29.1]}
18. Ne5 {[%clk 0:01:18.6]} 18... Nxe5 {[%clk 0:01:19.4]} 19. Bxb7+ {[%clk
0:01:14.9]} 19... Kxb7 {[%clk 0:01:21.3]} 20. Qxe5 {[%clk 0:01:15]} 20... f6
{[%clk 0:01:23]} 21. Qe4+ {[%clk 0:01:15.8]} 21... Kb8 {[%clk 0:01:23.9]} 22.
Qg6 {[%clk 0:01:08.2]} 22... d5 {[%clk 0:01:12.5]} 23. a3 {[%clk 0:01:05.3]}
23... Ba5 {[%clk 0:01:12.3]} 24. cxd5 {[%clk 0:01:02.1]} 24... exd5 {[%clk
0:01:04.5]} 25. Rxd5 {[%clk 0:01:04]} 25... Re7 {[%clk 0:01:05.7]} 26. Qd3
{[%clk 0:00:54.5]} 26... Kc7 {[%clk 0:00:20.1]} 27. Qc4 {[%clk 0:00:36.5]} 27...
Rhe8 {[%clk 0:00:19.2]} 28. b4 {[%clk 0:00:33.7]} 28... Re4 {[%clk 0:00:18.5]}
29. Qb5 {[%clk 0:00:23.1]} 29... cxb4 {[%clk 0:00:13.6]} 30. Rd7+ {[%clk
0:00:23.7]} 30... Kb8 {[%clk 0:00:14.3]} 31. Qc6 {[%clk 0:00:24.8]} 1-0

[Event "*** Titled Tuesday 3|2 Blitz"]
[Site "Chess.com"]
[Date "2016.02.02"]
[Round "6"]
[White "Noukii"]
[Black "Anton_Demchenko"]
[Result "1/2-1/2"]
[WhiteElo "2714"]
[BlackElo "2625"]
[TimeControl "180+2"]
[EndTime "18:09:55 PST"]
[Termination "Game drawn by repetition"]

1. d4 {[%clk 0:03:01.9]} 1... Nf6 {[%clk 0:03:01.1]} 2. c4 {[%clk 0:03:02.7]}
2... g6 {[%clk 0:03:02.3]} 3. Nc3 {[%clk 0:02:59.1]} 3... Bg7 {[%clk 0:03:03.7]}
4. e4 {[%clk 0:02:59.3]} 4... O-O {[%clk 0:03:04.2]} 5. Nf3 {[%clk 0:03:00.9]}
5... d6 {[%clk 0:03:04.8]} 6. Be2 {[%clk 0:03:02.5]} 6... Na6 {[%clk 0:03:05.4]}
7. O-O {[%clk 0:03:03.6]} 7... e5 {[%clk 0:03:06.5]} 8. Be3 {[%clk 0:03:03.9]}
8... c6 {[%clk 0:03:07.1]} 9. d5 {[%clk 0:02:59.9]} 9... Ng4 {[%clk 0:03:07.6]}
10. Bg5 {[%clk 0:03:00.4]} 10... f6 {[%clk 0:03:08]} 11. Bh4 {[%clk 0:02:52.5]}
11... c5 {[%clk 0:03:09.2]} 12. Ne1 {[%clk 0:02:48.4]} 12... Nh6 {[%clk
0:03:09]} 13. a3 {[%clk 0:02:47.5]} 13... g5 {[%clk 0:02:46.3]} 14. Bg3 {[%clk
0:02:48.3]} 14... f5 {[%clk 0:02:47.7]} 15. f3 {[%clk 0:02:48.3]} 15... f4
{[%clk 0:02:47.9]} 16. Bf2 {[%clk 0:02:49.5]} 16... b6 {[%clk 0:02:41.1]} 17.
Nd3 {[%clk 0:02:34.5]} 17... Nf7 {[%clk 0:02:38.2]} 18. b4 {[%clk 0:02:34.8]}
18... h5 {[%clk 0:02:37]} 19. bxc5 {[%clk 0:02:22.9]} 19... Nxc5 {[%clk
0:02:29.4]} 20. Nxc5 {[%clk 0:02:07.4]} 20... bxc5 {[%clk 0:02:29.9]} 21. Rb1
{[%clk 0:02:03.4]} 21... Bf6 {[%clk 0:02:25.5]} 22. h3 {[%clk 0:01:58.1]} 22...
Qd7 {[%clk 0:02:09.3]} 23. Qa4 {[%clk 0:01:57.1]} 23... Qxa4 {[%clk 0:02:06.7]}
24. Nxa4 {[%clk 0:01:59]} 24... Bd7 {[%clk 0:01:56]} 25. Nc3 {[%clk 0:01:21.2]}
25... Rfb8 {[%clk 0:01:51.3]} 26. Rxb8+ {[%clk 0:01:21.3]} 26... Rxb8 {[%clk
0:01:52]} 27. Rb1 {[%clk 0:01:23.2]} 27... Rxb1+ {[%clk 0:01:49.8]} 28. Nxb1
{[%clk 0:01:25.1]} 28... Bd8 {[%clk 0:01:50.7]} 29. Be1 {[%clk 0:01:24.1]} 29...
Kf8 {[%clk 0:01:43]} 30. Bd1 {[%clk 0:01:24.7]} 30... Ke8 {[%clk 0:01:35.8]} 31.
Kf1 {[%clk 0:01:23.2]} 31... Nh6 {[%clk 0:01:32.7]} 32. Nc3 {[%clk 0:01:22]}
32... a6 {[%clk 0:01:31.8]} 33. Na4 {[%clk 0:01:16]} 33... g4 {[%clk 0:01:25.4]}
34. hxg4 {[%clk 0:01:15.8]} 34... hxg4 {[%clk 0:01:27.3]} 35. Bf2 {[%clk
0:01:09.1]} 35... g3 {[%clk 0:01:26.1]} 36. Be1 {[%clk 0:01:09.8]} 36... Ng8
{[%clk 0:01:10.5]} 37. Bc3 {[%clk 0:01:09.2]} 37... Bc7 {[%clk 0:01:08.7]} 38.
Nb2 {[%clk 0:01:03.2]} 38... Ne7 {[%clk 0:01:08.8]} 39. Nd3 {[%clk 0:01:03.5]}
39... Ng6 {[%clk 0:01:09.7]} 40. Bd2 {[%clk 0:00:56.3]} 40... Ke7 {[%clk
0:01:09.4]} 41. Bc3 {[%clk 0:00:55.3]} 41... Bb6 {[%clk 0:00:59]} 42. Nb2 {[%clk
0:00:54.5]} 42... Bc7 {[%clk 0:00:59.7]} 43. Ba4 {[%clk 0:00:52.3]} 43... Bxa4
{[%clk 0:00:57.2]} 44. Nxa4 {[%clk 0:00:54.2]} 44... Kd7 {[%clk 0:00:57]} 45.
Nb2 {[%clk 0:00:55.6]} 45... Nh4 {[%clk 0:00:54.6]} 46. Nd3 {[%clk 0:00:56.8]}
46... Ng6 {[%clk 0:00:55]} 47. Bd2 {[%clk 0:00:51]} 47... Ke7 {[%clk 0:00:53.3]}
48. Ke2 {[%clk 0:00:50.7]} 48... Kd7 {[%clk 0:00:53.4]} 49. Bc3 {[%clk
0:00:50.4]} 49... Ke7 {[%clk 0:00:53.8]} 50. Bd2 {[%clk 0:00:40.6]} 50... Kd7
{[%clk 0:00:54.8]} 51. Kf1 {[%clk 0:00:40.5]} 51... Bd8 {[%clk 0:00:54.4]} 52.
Bc3 {[%clk 0:00:40.3]} 52... Bc7 {[%clk 0:00:55]} 53. Bd2 {[%clk 0:00:41.4]}
53... Bd8 {[%clk 0:00:55.9]} 54. Bc3 {[%clk 0:00:40.5]} 54... Bc7 {[%clk
0:00:56.6]} 55. Bd2 {[%clk 0:00:42.1]} 55... Bd8 {[%clk 0:00:57.6]} 1/2-1/2

[Event "*** Titled Tuesday 3|2 Blitz"]
[Site "Chess.com"]
[Date "2016.02.02"]
[Round "6"]
[White "TheMagician"]
[Black "kharposh"]
[Result "1-0"]
[WhiteElo "2130"]
[BlackElo "2040"]
[TimeControl "180+2"]
[EndTime "18:10:21 PST"]
[Termination "TheMagician won by resignation"]

1. e4 {[%clk 0:03:01.9]} 1... e5 {[%clk 0:03:01.1]} 2. f4 {[%clk 0:03:02.8]}
2... exf4 {[%clk 0:03:00.3]} 3. Nf3 {[%clk 0:03:03.8]} 3... Nf6 {[%clk
0:02:59.4]} 4. Nc3 {[%clk 0:03:04.1]} 4... d5 {[%clk 0:02:56.7]} 5. e5 {[%clk
0:03:00.7]} 5... Nh5 {[%clk 0:02:58.2]} 6. d4 {[%clk 0:02:59.8]} 6... c5 {[%clk
0:02:57.4]} 7. dxc5 {[%clk 0:02:58.8]} 7... Bxc5 {[%clk 0:02:51.4]} 8. Qxd5
{[%clk 0:02:57.5]} 8... Qb6 {[%clk 0:02:26.8]} 9. Ne4 {[%clk 0:02:36.8]} 9...
Bb4+ {[%clk 0:02:05.9]} 10. c3 {[%clk 0:02:37.3]} 10... Be6 {[%clk 0:02:05.8]}
11. Qb5+ {[%clk 0:02:38]} 11... Nc6 {[%clk 0:01:53.1]} 12. cxb4 {[%clk
0:02:34.3]} 12... O-O {[%clk 0:01:45.7]} 13. Qxb6 {[%clk 0:02:34.3]} 13... axb6
{[%clk 0:01:45.4]} 14. Bd2 {[%clk 0:02:32.7]} 14... Bxa2 {[%clk 0:01:42.4]} 15.
Be2 {[%clk 0:02:18.5]} 15... Bd5 {[%clk 0:01:41.2]} 16. Nc3 {[%clk 0:02:12.3]}
16... Rxa1+ {[%clk 0:01:40.2]} 17. Kf2 {[%clk 0:02:13.8]} 17... Rxh1 {[%clk
0:01:30.1]} 18. Nxd5 {[%clk 0:02:13.6]} 18... f6 {[%clk 0:01:22.1]} 19. e6
{[%clk 0:02:12.5]} 19... Re8 {[%clk 0:01:20.3]} 20. Bc4 {[%clk 0:02:07.9]} 20...
Kh8 {[%clk 0:01:12.3]} 21. Nxb6 {[%clk 0:01:47.8]} 21... Ne5 {[%clk 0:01:06.6]}
22. Nxe5 {[%clk 0:01:40.5]} 22... fxe5 {[%clk 0:01:05]} 23. Nd7 {[%clk
0:01:35.3]} 23... e4 {[%clk 0:01:00.3]} 24. Bc3 {[%clk 0:01:31.7]} 24... e3+
{[%clk 0:00:57.2]} 25. Kf3 {[%clk 0:01:32.8]} 25... Nf6 {[%clk 0:00:46.9]} 26.
Nxf6 {[%clk 0:01:31.9]} 26... e2 {[%clk 0:00:34.4]} 27. Nxe8 {[%clk 0:01:24.3]}
27... e1=Q {[%clk 0:00:34.9]} 28. Bxe1 {[%clk 0:01:24.4]} 28... Rxe1 {[%clk
0:00:36.8]} 29. Nd6 {[%clk 0:01:23.5]} 29... g5 {[%clk 0:00:35.1]} 30. Ne4
{[%clk 0:01:23]} 30... Re3+ {[%clk 0:00:34]} 31. Kg4 {[%clk 0:01:21.4]} 31...
Rxe4 {[%clk 0:00:35.9]} 32. b3 {[%clk 0:01:16.7]} 32... b5 {[%clk 0:00:18.6]}
33. Bxb5 {[%clk 0:01:17]} 33... Rxe6 {[%clk 0:00:18.1]} 34. Bc4 {[%clk
0:01:14.6]} 34... Rg6 {[%clk 0:00:16.1]} 35. b5 {[%clk 0:01:14.1]} 35... Kg7
{[%clk 0:00:17.5]} 36. Bd3 {[%clk 0:01:15.4]} 36... Rd6 {[%clk 0:00:14]} 37. Be4
{[%clk 0:01:16.3]} 37... Kf6 {[%clk 0:00:12.8]} 38. Bxh7 {[%clk 0:01:15.1]}
38... Rb6 {[%clk 0:00:09.4]} 39. Bd3 {[%clk 0:01:15.8]} 39... Rd6 {[%clk
0:00:09.4]} 40. Be4 {[%clk 0:01:16.3]} 40... Rb6 {[%clk 0:00:07.6]} 41. Bc6
{[%clk 0:01:16.9]} 41... Kg6 {[%clk 0:00:08.3]} 42. h3 {[%clk 0:01:16.8]} 42...
Kf6 {[%clk 0:00:08]} 43. h4 {[%clk 0:01:16.5]} 43... gxh4 {[%clk 0:00:07.8]} 44.
Kxf4 {[%clk 0:01:17.9]} 44... Ke6 {[%clk 0:00:06.6]} 45. Kg4 {[%clk 0:01:17]}
45... Ke5 {[%clk 0:00:06.1]} 46. Kxh4 {[%clk 0:01:18.1]} 46... Kd4 {[%clk
0:00:06.7]} 47. g4 {[%clk 0:01:18.5]} 47... Kc3 {[%clk 0:00:08.2]} 48. g5 {[%clk
0:01:19.8]} 48... Kxb3 {[%clk 0:00:09]} 49. g6 {[%clk 0:01:21.2]} 49... Kb4
{[%clk 0:00:07.3]} 50. g7 {[%clk 0:01:22.3]} 50... Rb8 {[%clk 0:00:08.4]} 51.
Kg5 {[%clk 0:01:21.6]} 51... Kc5 {[%clk 0:00:09]} 52. Kf6 {[%clk 0:01:22.6]}
52... Kb6 {[%clk 0:00:06.3]} 53. Kf7 {[%clk 0:01:22.7]} 53... Rc8 {[%clk
0:00:04.5]} 54. g8=Q {[%clk 0:01:24.1]} 54... Rxg8 {[%clk 0:00:05.2]} 55. Kxg8
{[%clk 0:01:25.3]} 55... Kc7 {[%clk 0:00:06.5]} 56. Kf7 {[%clk 0:01:27.2]} 56...
Kb6 {[%clk 0:00:07.7]} 57. Ke7 {[%clk 0:01:28.5]} 57... Kc7 {[%clk 0:00:09.5]}
58. Ke8 {[%clk 0:01:30]} 58... Kc8 {[%clk 0:00:10.1]} 59. b6 {[%clk 0:01:30]}
59... Kb8 {[%clk 0:00:11.6]} 60. Ke7 {[%clk 0:01:30.1]} 60... Kc8 {[%clk
0:00:12.6]} 61. Kd6 {[%clk 0:01:31.5]} 61... Kb8 {[%clk 0:00:13.8]} 62. Kc5
{[%clk 0:01:32.9]} 62... Kc8 {[%clk 0:00:14.6]} 63. Kb5 {[%clk 0:01:34.4]} 63...
Kb8 {[%clk 0:00:15.6]} 64. Ka6 {[%clk 0:01:35]} 64... Kc8 {[%clk 0:00:17.2]} 65.
Ka7 {[%clk 0:01:36.5]} 65... Kd8 {[%clk 0:00:17.8]} 66. b7 {[%clk 0:01:38]}
66... Ke7 {[%clk 0:00:17.9]} 67. Bg2 {[%clk 0:01:39.3]} 1-0

[Event "*** Titled Tuesday 3|2 Blitz"]
[Site "Chess.com"]
[Date "2016.02.02"]
[Round "6"]
[White "chessking2151"]
[Black "davidarenas1224"]
[Result "1-0"]
[WhiteElo "2252"]
[BlackElo "2081"]
[TimeControl "180+2"]
[EndTime "18:10:34 PST"]
[Termination "chessking2151 won by resignation"]

1. e4 {[%clk 0:03:01.9]} 1... c5 {[%clk 0:02:58.3]} 2. Nf3 {[%clk 0:02:57.5]}
2... d6 {[%clk 0:02:54.3]} 3. Bb5+ {[%clk 0:02:57.4]} 3... Bd7 {[%clk
0:02:48.7]} 4. Bxd7+ {[%clk 0:02:57.8]} 4... Nxd7 {[%clk 0:02:50.5]} 5. O-O
{[%clk 0:02:58.8]} 5... Ngf6 {[%clk 0:02:47.4]} 6. Re1 {[%clk 0:02:59.9]} 6...
e6 {[%clk 0:02:46.3]} 7. b3 {[%clk 0:03:00.8]} 7... Be7 {[%clk 0:02:46.1]} 8.
Bb2 {[%clk 0:03:02]} 8... O-O {[%clk 0:02:47.1]} 9. d4 {[%clk 0:03:02.3]} 9...
cxd4 {[%clk 0:02:46.8]} 10. Nxd4 {[%clk 0:03:04.2]} 10... a6 {[%clk 0:02:47]}
11. c4 {[%clk 0:03:03.5]} 11... Rc8 {[%clk 0:02:46.5]} 12. Nc3 {[%clk
0:03:03.3]} 12... Re8 {[%clk 0:02:46.3]} 13. f4 {[%clk 0:03:00.8]} 13... Qa5
{[%clk 0:02:46.4]} 14. Qf3 {[%clk 0:02:40.9]} 14... Qh5 {[%clk 0:02:37.4]} 15.
Qxh5 {[%clk 0:02:27.7]} 15... Nxh5 {[%clk 0:02:39.3]} 16. g3 {[%clk 0:02:28.8]}
16... Nhf6 {[%clk 0:02:33.3]} 17. Rad1 {[%clk 0:02:27.1]} 17... Bf8 {[%clk
0:02:14.5]} 18. Kg2 {[%clk 0:01:54.7]} 18... Nc5 {[%clk 0:02:07]} 19. Nf3 {[%clk
0:01:34.2]} 19... Red8 {[%clk 0:01:49.1]} 20. h3 {[%clk 0:01:33]} 20... Ra8
{[%clk 0:01:33.3]} 21. e5 {[%clk 0:00:55.1]} 21... Ne8 {[%clk 0:01:26.8]} 22.
Ba3 {[%clk 0:00:47.2]} 22... dxe5 {[%clk 0:01:22.7]} 23. Nxe5 {[%clk 0:00:39.8]}
23... f6 {[%clk 0:01:18.5]} 24. Bxc5 {[%clk 0:00:28.3]} 24... Bxc5 {[%clk
0:01:20.4]} 25. Nd3 {[%clk 0:00:19.2]} 25... Bd4 {[%clk 0:01:17.4]} 26. Ne4
{[%clk 0:00:20.2]} 26... Kf7 {[%clk 0:01:12.8]} 27. Nec5 {[%clk 0:00:21.2]}
27... Bxc5 {[%clk 0:00:50.5]} 28. Nxc5 {[%clk 0:00:22.1]} 28... b6 {[%clk
0:00:46.1]} 29. Ne4 {[%clk 0:00:17.5]} 29... Rac8 {[%clk 0:00:38.4]} 30. Kf3
{[%clk 0:00:16.7]} 30... h6 {[%clk 0:00:36.4]} 31. g4 {[%clk 0:00:16.4]} 31...
Ke7 {[%clk 0:00:32.8]} 32. Ke3 {[%clk 0:00:15.1]} 32... Nd6 {[%clk 0:00:32.7]}
33. Nxd6 {[%clk 0:00:15.4]} 33... Rxd6 {[%clk 0:00:34.6]} 34. Rxd6 {[%clk
0:00:17.1]} 34... Kxd6 {[%clk 0:00:36.1]} 35. Rd1+ {[%clk 0:00:18.9]} 35... Ke7
{[%clk 0:00:36.1]} 36. Ke4 {[%clk 0:00:20.3]} 36... Rc5 {[%clk 0:00:33.4]} 37.
Rd4 {[%clk 0:00:19.3]} 37... h5 {[%clk 0:00:32.2]} 38. a3 {[%clk 0:00:17.9]}
38... Ra5 {[%clk 0:00:30.9]} 39. a4 {[%clk 0:00:18.3]} 39... Rc5 {[%clk
0:00:31.4]} 40. b4 {[%clk 0:00:19.4]} 40... Rc8 {[%clk 0:00:29.4]} 41. Kd3
{[%clk 0:00:20.5]} 41... hxg4 {[%clk 0:00:28.4]} 42. hxg4 {[%clk 0:00:21.8]}
42... e5 {[%clk 0:00:28.3]} 43. Re4 {[%clk 0:00:21.7]} 43... Ke6 {[%clk
0:00:28.7]} 44. f5+ {[%clk 0:00:21.5]} 44... Ke7 {[%clk 0:00:27.3]} 45. Kc3
{[%clk 0:00:22.7]} 45... Kf7 {[%clk 0:00:21.4]} 46. Re3 {[%clk 0:00:22.2]} 46...
Rd8 {[%clk 0:00:19.8]} 47. c5 {[%clk 0:00:21.8]} 47... bxc5 {[%clk 0:00:19.9]}
48. bxc5 {[%clk 0:00:23.7]} 48... Kg8 {[%clk 0:00:19.9]} 49. Kc4 {[%clk
0:00:24.8]} 49... Rd1 {[%clk 0:00:18]} 50. c6 {[%clk 0:00:24.9]} 50... Kf7
{[%clk 0:00:17.3]} 51. c7 {[%clk 0:00:25.3]} 51... Rd4+ {[%clk 0:00:14.9]} 52.
Kc3 {[%clk 0:00:21.9]} 52... Rd1 {[%clk 0:00:13.2]} 53. Kc2 {[%clk 0:00:21.6]}
1-0